bitfinex/quotes_ETHUSD_20241216
["timestamp","ask_amount","ask_price","bid_price","bid_amount"]
[1734380546572,0.22932902,4062.5,4062.4,0.044861]
[1734380546923,0.22932902,4062.5,4062.4,0.048961]
[1734380547128,0.22932902,4062.5,4062.1,0.0041]
[1734380547437,3.0,4062.9,4061.9,1.8178]
[1734380547438,0.55,4062.2,4061.9,1.0]
[1734380547565,6.01184,4062.0,4061.9,1.0]
[1734380547905,6.24116902,4062.0,4061.9,1.0]
[1734380548618,6.24116902,4062.0,4061.0,0.044861]
[1734380548619,0.55,4061.9,4061.0,0.044861]
[1734380548770,0.22932902,4062.0,4061.0,0.044861]
[1734380548771,2.46233,4061.2,4061.0,0.044861]
[1734380548963,6.54294202,4061.1,4061.0,0.044861]
[1734380549167,6.54289029,4061.1,4061.0,0.044861]
[1734380549426,3.01256,4060.8,4060.7,0.0041]
[1734380549585,3.01256,4060.8,4060.5,0.044861]
[1734380549586,5.46269,4060.6,4060.5,0.044861]
[1734380549910,3.55,4060.5,4060.2,0.048961]
[1734380550405,0.55,4060.6,4060.2,0.048961]
[1734380550617,0.55,4060.6,4058.9,8.7299964]
[1734380550618,3.0,4060.5,4059.5,0.704361]
[1734380550901,4.44033471,4060.4,4059.5,0.704361]
[1734380551066,4.2113946,4060.4,4059.5,0.704361]
[1734380551689,1.2113946,4060.4,4059.5,0.704361]
[1734380551864,0.55,4060.4,4059.5,0.704361]
[1734380552064,0.55,4061.1,4059.6,3.34423344]
[1734380552268,0.55,4060.9,4059.6,3.34423344]
[1734380552676,0.55,4060.7,4059.5,0.704361]
[1734380552875,3.0,4061.1,4059.5,0.704361]
[1734380552876,3.55,4061.1,4059.5,0.704361]
[1734380553100,0.55,4060.9,4059.5,0.704361]
[1734380553277,0.601,4060.7,4059.5,0.704361]
[1734380553490,0.55,4060.5,4059.5,0.704361]
[1734380553829,0.55,4060.6,4059.5,0.704361]
[1734380555688,0.601233,4061.0,4059.5,0.704361]
[1734380555689,0.55,4060.9,4059.6,3.34423344]
[1734380556018,0.601233,4061.0,4059.7,0.40485944]
[1734380556019,0.55,4061.0,4059.7,0.40485944]
[1734380556196,0.55,4061.1,4059.7,0.40485944]
[1734380556913,0.55,4061.1,4059.6,3.34423344]
[1734380557411,3.55,4061.4,4059.7,0.7751]
[1734380557617,2.5129,4061.9,4059.7,0.7751]
[1734380557932,0.22830587,4061.8,4060.2,0.7751]
[1734380558139,0.22830587,4061.7,4060.2,0.7751]
[1734380558437,0.50242646,4061.6,4060.2,1.18703334]
[1734380558771,0.22836363,4061.5,4060.2,1.18703334]
[1734380558892,0.27412059,4061.6,4060.2,1.18703334]
[1734380559086,0.55,4061.5,4060.2,1.18703334]
[1734380559686,0.55,4061.8,4060.2,1.18703334]
[1734380559910,3.051,4061.9,4060.3,0.45312668]
[1734380559911,0.83466624,4061.7,4060.3,0.45312668]
[1734380560117,0.051,4061.9,4060.3,0.45312668]
[1734380560410,0.2283828,4061.8,4060.4,0.7849]
[1734380560611,0.2283828,4061.7,4060.4,0.7849]
[1734380560921,0.051,4061.9,4060.4,0.7849]
[1734380561213,0.55,4061.7,4060.4,0.7849]
[1734380561414,0.55,4061.5,4060.4,0.7849]
[1734380562019,0.3,4062.8,4061.2,0.7879]
[1734380562020,0.051,4062.7,4061.2,0.7879]
[1734380562225,0.22836683,4062.6,4061.2,0.7879]
[1734380562535,2.46123,4063.1,4061.2,0.7879]
[1734380562736,0.12109488,4061.8,4061.2,0.7879]
[1734380564038,0.12109488,4061.8,4061.6,3.34423344]
[1734380564241,0.051,4063.2,4061.7,0.819]
[1734380564411,0.22854825,4063.1,4061.7,0.819]
[1734380564620,0.80260808,4063.0,4061.7,0.819]
[1734380564950,0.22854825,4062.9,4061.7,0.819]
[1734380565168,0.22854825,4062.8,4061.7,0.819]
[1734380565465,0.22854825,4062.7,4061.7,0.819]
[1734380565667,0.22854825,4062.6,4061.7,0.819]
[1734380565875,0.55,4063.0,4061.7,0.819]
[1734380566084,0.55,4062.8,4061.7,0.819]
[1734380566312,0.55,4062.6,4061.7,0.819]
[1734380566821,0.12397048,4061.9,4061.7,0.819]
[1734380571384,0.55,4062.6,4061.7,0.819]
[1734380571810,2.58884369,4063.8,4062.0,0.7791]
[1734380571811,0.55,4063.1,4062.0,0.7791]
[1734380571938,0.55,4063.1,4061.5,8.7299964]
[1734380571939,2.46065,4064.0,4062.5,0.7791]
[1734380572145,2.46065,4064.0,4062.5,0.7271]
[1734380572146,0.22902609,4063.0,4062.5,0.7271]
[1734380572505,0.12383526,4062.7,4062.5,0.7271]
[1734380573140,0.55,4062.6,4061.4,3.34423344]
[1734380575269,0.55,4062.6,4061.5,0.791]
[1734380579155,0.103,4062.4,4061.5,0.791]
[1734380580551,0.55,4062.6,4061.5,0.791]
[1734380582282,0.12383526,4062.7,4061.9,3.34423344]
[1734380582459,0.12383526,4062.7,4062.0,0.8055]
[1734380584409,0.12383526,4062.7,4062.0,1.22047334]
[1734380586306,0.12383526,4062.7,4062.4,3.34423344]
[1734380586870,0.12383526,4062.7,4062.0,1.22047334]
[1734380587967,0.55,4063.3,4062.0,1.22047334]
[1734380588167,0.55,4063.3,4062.1,2.71816295]
[1734380588467,0.55,4063.1,4062.1,2.71816295]
[1734380588668,0.55,4062.9,4062.1,2.71816295]
[1734380588865,0.55,4063.1,4062.1,2.71816295]
[1734380589069,0.22961132,4063.0,4062.1,2.71816295]
[1734380589265,0.77961132,4062.9,4062.1,2.71816295]
[1734380589591,0.55,4063.1,4062.1,2.71816295]
[1734380589789,0.55,4062.9,4062.1,2.71816295]
[1734380589995,0.55,4063.4,4062.1,2.71816295]
[1734380590170,0.55,4063.2,4062.1,2.71816295]
[1734380590369,0.55,4063.0,4062.1,2.71816295]
[1734380590805,0.55,4063.4,4062.1,2.71816295]
[1734380591010,0.22982729,4063.3,4062.1,2.71816295]
[1734380591214,0.22982729,4063.2,4062.1,2.71816295]
[1734380591367,0.70814704,4063.1,4062.1,11.84202298]
[1734380591715,0.41379642,4063.0,4062.1,11.84202298]
[1734380591892,0.18396913,4062.9,4062.1,11.84202298]
[1734380592099,0.29435062,4063.2,4062.5,2.71816295]
[1734380592295,0.18394218,4063.1,4062.9,2.71816295]
[1734380592632,0.29431297,4063.7,4063.0,0.27181629]
[1734380592917,0.41385764,4063.6,4062.9,2.71816295]
[1734380593113,0.18393673,4063.5,4062.9,2.71816295]
[1734380593294,0.29431297,4063.8,4062.9,2.71816295]
[1734380593470,0.41366074,4063.7,4062.9,2.71816295]
[1734380593670,0.18384922,4063.6,4062.9,2.71816295]
[1734380593915,0.18384912,4063.5,4062.9,2.71816295]
[1734380594079,0.29415859,4063.9,4062.9,2.71816295]
[1734380594406,0.4135305,4063.8,4062.9,2.71816295]
[1734380594606,0.4135305,4063.7,4063.3,2.71816295]
[1734380594905,0.103,4064.1,4063.0,0.7759]
[1734380595080,0.4135109,4064.0,4063.0,0.7759]
[1734380595283,0.4135109,4063.9,4063.0,0.7759]
[1734380595485,0.18378262,4063.8,4063.0,0.7759]
[1734380595795,0.103,4064.1,4063.0,0.7759]
[1734380595999,0.96338014,4064.0,4063.0,0.7759]
[1734380596202,0.41338014,4063.9,4063.0,0.7759]
[1734380596432,0.18372451,4063.8,4063.0,0.7759]
[1734380596602,0.55,4064.0,4063.0,0.7759]
[1734380596813,0.55,4063.6,4062.4,9.5471964]
[1734380597137,0.55,4063.6,4061.6,1.01154573]
[1734380597138,0.55,4063.0,4061.9,0.8172]
[1734380597418,0.55,4062.8,4061.9,0.8172]
[1734380597732,0.41334762,4062.7,4061.5,0.7803]
[1734380597911,0.54937741,4062.6,4061.5,0.7803]
[1734380598218,0.18369896,4062.5,4061.5,0.7803]
[1734380598443,0.13602979,4062.6,4061.5,9.5102964]
[1734380598713,0.13602979,4062.6,4061.6,3.0]
[1734380598714,0.18375136,4062.5,4061.6,3.0]
[1734380598882,0.13602979,4062.6,4061.6,3.0]
[1734380599078,0.18375122,4062.5,4061.6,3.0]
[1734380599280,0.55,4062.8,4061.5,12.22845935]
[1734380599281,0.22969948,4062.4,4061.5,12.22845935]
[1734380599479,0.22969948,4062.3,4061.5,9.5102964]
[1734380599705,0.22969948,4062.2,4061.5,9.5102964]
[1734380599884,0.84400196,4062.8,4061.5,9.5102964]
[1734380600086,0.55,4062.6,4061.5,9.5102964]
[1734380600289,0.82696345,4062.5,4061.5,9.5102964]
[1734380600597,0.41348444,4062.4,4061.5,9.5102964]
[1734380600790,0.51648444,4062.3,4061.5,8.7299964]
[1734380600990,0.22971479,4062.2,4061.5,8.7299964]
[1734380601325,0.103,4062.3,4061.5,8.7299964]
[1734380601507,0.22971254,4062.2,4061.5,8.7299964]
[1734380601685,0.22971254,4062.1,4061.5,8.7299964]
[1734380601879,0.36754092,4062.5,4061.5,8.7299964]
[1734380602083,0.91248217,4062.4,4061.5,8.7299964]
[1734380602303,0.55,4062.2,4061.5,8.7299964]
[1734380602495,0.33271498,4062.1,4061.5,8.7299964]
[1734380602706,0.22971498,4062.0,4061.5,8.7299964]
[1734380602906,0.22971498,4061.9,4060.8,1.01154573]
[1734380603106,0.103,4062.1,4060.5,9.5475964]
[1734380603107,1.56076889,4061.8,4060.5,9.5475964]
[1734380603305,0.55,4061.6,4060.5,0.8176]
[1734380603506,0.103,4061.4,4060.5,0.8176]
[1734380603950,0.22967129,4061.3,4060.5,0.8176]
[1734380604219,0.103,4061.4,4060.3,8.7299964]
[1734380604220,0.55,4061.1,4060.3,8.7299964]
[1734380604620,0.55,4061.3,4060.3,8.7299964]
[1734380604826,0.55,4061.1,4060.2,0.8176]
[1734380605023,0.36253973,4061.0,4060.2,0.8176]
[1734380605322,0.13295796,4061.0,4060.2,0.8176]
[1734380605617,0.55,4061.3,4060.2,0.8176]
[1734380605822,0.55,4061.1,4060.2,0.8176]
[1734380605998,0.55,4061.3,4060.2,0.8176]
[1734380606194,0.22939773,4061.2,4060.2,0.8176]
[1734380606396,0.55,4061.3,4060.2,0.8176]
[1734380606606,0.55,4060.9,4059.7,8.7299964]
[1734380606800,0.55,4061.1,4058.7,1.01154573]
[1734380606801,2.46305,4060.0,4058.7,1.01154573]
[1734380607102,2.46305,4060.0,4058.1,2.55402938]
[1734380607103,3.01326,4059.7,4058.2,1.01154573]
[1734380607318,0.103,4059.4,4058.0,0.7752]
[1734380607549,0.55,4059.3,4058.0,0.7752]
[1734380607783,0.55,4059.3,4057.7,8.7299964]
[1734380607784,0.55,4059.1,4057.7,8.7299964]
[1734380608062,0.55,4059.3,4057.7,8.7299964]
[1734380608362,0.103,4059.4,4058.0,3.34653525]
[1734380608569,0.103,4059.4,4058.1,0.67222363]
[1734380608730,0.103,4059.4,4058.2,0.79983795]
[1734380608948,0.103,4059.4,4058.2,0.7752]
[1734380609631,0.103,4059.4,4058.3,0.02463794]
[1734380610748,0.103,4059.4,4058.2,0.7752]
[1734380612664,0.55,4060.0,4058.2,1.72571964]
[1734380612867,0.55,4060.0,4058.2,0.7752]
[1734380613758,0.55,4059.8,4058.2,0.7752]
[1734380615086,0.55,4059.8,4058.4,3.34653525]
[1734380615442,0.55,4059.8,4058.1,8.7299964]
[1734380615443,0.103,4059.9,4058.9,0.7613]
[1734380615644,0.103,4059.9,4059.0,0.41078353]
[1734380616144,0.103,4059.9,4058.5,0.7942]
[1734380616644,0.55,4059.8,4058.5,0.7942]
[1734380617078,0.12210031,4059.5,4058.2,3.0]
[1734380617377,0.55,4059.4,4058.2,3.0]
[1734380618076,0.55,4059.4,4058.3,0.02463752]
[1734380618992,0.55,4059.4,4058.2,11.7299964]
[1734380619166,0.55,4059.4,4058.2,8.7299964]
[1734380619344,0.55,4059.2,4057.8,0.7942]
[1734380620377,0.12210031,4059.5,4058.8,2.72353735]
[1734380622148,0.12210031,4059.5,4058.6,3.35065674]
[1734380622349,0.12210031,4059.5,4058.6,3.76514241]
[1734380623506,0.12210031,4059.5,4058.6,3.35065674]
[1734380624528,0.12210031,4059.5,4058.7,8.7299964]
[1734380625495,0.103,4059.8,4058.7,8.7299964]
[1734380627369,0.103,4059.8,4058.5,0.7942]
[1734380627370,0.55,4059.7,4058.5,0.7942]
[1734380627583,0.103,4060.0,4058.3,8.7299964]
[1734380627793,0.55,4059.5,4058.4,3.0]
[1734380628345,0.55,4059.5,4058.3,8.7299964]
[1734380628596,0.34817549,4059.9,4058.1,3.35065674]
[1734380628597,0.55,4059.3,4058.1,3.35065674]
[1734380628915,0.103,4059.4,4057.8,0.7862]
[1734380628916,0.55,4059.4,4057.8,0.7862]
[1734380629120,0.103,4059.1,4057.8,0.7862]
[1734380631193,0.22925314,4059.0,4057.8,0.7862]
[1734380631493,0.103,4059.1,4057.7,3.35065674]
[1734380631692,0.22925687,4059.0,4057.7,3.35065674]
[1734380631893,0.103,4059.1,4057.7,3.35065674]
[1734380632093,0.22925311,4059.0,4057.7,3.35065674]
[1734380632293,0.103,4059.1,4057.7,4.64045205]
[1734380632462,0.2294972,4059.0,4057.7,4.64045205]
[1734380632664,0.29375642,4059.5,4057.7,3.35065674]
[1734380632665,0.3324972,4058.9,4057.7,3.35065674]
[1734380632864,0.2294972,4058.8,4057.7,3.35065674]
[1734380633081,0.103,4058.9,4057.7,3.35065674]
[1734380633082,0.2294972,4058.7,4057.7,3.35065674]
[1734380633284,0.2294972,4058.6,4057.7,3.35065674]
[1734380633482,0.2294972,4058.5,4057.8,8.7299964]
[1734380633698,0.36742436,4058.8,4057.8,8.7299964]
[1734380633902,0.22964028,4058.7,4057.8,8.7299964]
[1734380634138,0.22964028,4058.6,4057.8,8.7299964]
[1734380634437,0.103,4058.9,4057.8,8.7299964]
[1734380634438,0.41346363,4058.5,4057.8,8.7299964]
[1734380634741,0.103,4058.3,4057.5,3.0]
[1734380635045,0.41346363,4058.2,4057.5,3.0]
[1734380635220,0.41346363,4058.1,4057.5,3.0]
[1734380635408,0.41346363,4058.0,4057.5,3.0]
[1734380635608,0.18382335,4057.9,4057.5,3.0]
[1734380635810,0.103,4058.3,4057.5,3.0]
[1734380636018,0.70811103,4058.2,4057.5,8.7299964]
[1734380636225,0.70828486,4058.1,4057.5,8.7299964]
[1734380636440,0.41400496,4058.0,4057.5,8.7299964]
[1734380636602,0.41400496,4057.9,4057.3,3.35065674]
[1734380636807,0.18392493,4057.8,4057.3,3.35065674]
[1734380637042,0.103,4058.3,4057.3,3.35065674]
[1734380637237,1.076545,4058.2,4057.3,3.35065674]
[1734380637541,0.7084953,4058.1,4057.3,3.35065674]
[1734380637856,0.41405577,4058.0,4057.3,3.35065674]
[1734380638146,0.41405577,4057.9,4057.3,3.35065674]
[1734380638334,0.18402471,4057.8,4057.3,3.35065674]
[1734380638530,0.103,4058.3,4057.3,3.35065674]
[1734380638734,1.07640107,4058.2,4057.7,3.35065674]
[1734380639041,0.41400041,4058.1,4057.7,3.35065674]
[1734380639242,0.18397279,4058.0,4057.7,3.35065674]
[1734380639549,0.18397279,4057.9,4057.7,3.35065674]
[1734380639744,0.103,4058.3,4057.7,3.35065674]
[1734380639949,0.7082954,4058.2,4057.7,3.35065674]
[1734380640124,0.41393887,4058.1,4057.7,3.35065674]
[1734380640326,0.103,4058.3,4057.7,3.68572241]
[1734380640327,0.41393887,4058.0,4057.7,3.68572241]
[1734380640518,0.18396195,4057.9,4057.7,3.68572241]
[1734380640845,0.103,4058.3,4057.7,3.68572241]
[1734380641154,0.70825231,4058.2,4057.7,3.68572241]
[1734380641336,0.41391374,4058.1,4057.7,3.68572241]
[1734380641525,0.41390332,4058.0,4057.7,3.68572241]
[1734380641725,0.18395118,4057.9,4057.7,3.68572241]
[1734380642155,0.103,4058.3,4057.7,3.68572241]
[1734380642329,0.41382565,4058.2,4057.7,3.68572241]
[1734380642649,0.103,4059.0,4057.9,0.774]
[1734380642851,1.30575456,4058.9,4057.9,0.774]
[1734380643026,1.07586786,4058.8,4057.3,8.7299964]
[1734380643353,0.55,4058.6,4057.3,8.7299964]
[1734380643553,1.50163951,4058.5,4057.3,8.7299964]
[1734380643760,1.17886786,4058.4,4057.3,8.7299964]
[1734380643927,1.17886786,4058.4,4057.2,0.8237]
[1734380643928,1.07586786,4058.3,4057.2,0.8237]
[1734380644137,0.70805031,4058.2,4057.1,2.72477399]
[1734380644345,0.70805031,4058.1,4057.1,2.72477399]
[1734380644555,0.41379533,4058.0,4057.1,2.72477399]
[1734380644723,0.41379533,4057.9,4057.1,2.72477399]
[1734380644925,0.18390936,4057.8,4057.1,2.72477399]
[1734380645127,0.18387551,4057.7,4057.1,2.72477399]
[1734380645329,0.103,4057.6,4057.1,2.72477399]
[1734380646169,0.103,4057.6,4057.0,8.7299964]
[1734380647244,0.103,4057.6,4056.7,2.72477399]
[1734380647584,0.103,4057.3,4056.3,2.72477399]
[1734380647760,0.18382084,4057.2,4056.3,2.72477399]
[1734380648062,0.103,4057.3,4056.3,4.0502356]
[1734380648063,0.18384826,4057.1,4056.3,4.0502356]
[1734380648266,0.103,4057.3,4056.3,4.0502356]
[1734380648569,0.41365359,4057.2,4056.4,0.82728136]
[1734380648862,0.103,4057.3,4056.4,0.82728136]
[1734380649062,0.18377877,4057.2,4056.4,0.82728136]
[1734380649267,0.41352918,4057.1,4056.3,2.72477399]
[1734380649441,0.18379339,4057.0,4056.3,2.72477399]
[1734380649646,0.41343959,4056.9,4056.3,2.72477399]
[1734380649841,0.103,4057.3,4056.3,2.72477399]
[1734380650043,1.0747436,4057.2,4056.3,2.72477399]
[1734380650249,0.103,4057.3,4056.3,2.72477399]
[1734380650250,0.41336292,4057.1,4056.3,2.72477399]
[1734380650447,0.103,4057.3,4056.3,2.72477399]
[1734380650448,0.41336292,4057.0,4056.3,2.72477399]
[1734380650658,0.18371685,4056.9,4056.3,2.72477399]
[1734380650844,0.103,4057.3,4056.3,2.72477399]
[1734380651060,0.55,4057.1,4056.1,8.7299964]
[1734380651246,0.103,4056.9,4056.1,8.7299964]
[1734380651447,0.103,4056.9,4055.9,2.72477399]
[1734380651649,0.103,4056.9,4055.7,0.7883]
[1734380651650,0.73357103,4056.8,4055.7,0.7883]
[1734380651849,0.779464,4056.8,4055.8,0.82757298]
[1734380652137,0.18357276,4056.7,4055.8,0.82757298]
[1734380652469,0.55,4056.8,4055.6,1.01154573]
[1734380652670,0.55,4056.8,4055.6,4.55954311]
[1734380652921,0.55,4056.8,4055.7,2.06903391]
[1734380653042,0.28652895,4056.7,4055.7,0.82761356]
[1734380653238,0.28652895,4056.7,4055.5,12.46631612]
[1734380653239,0.55,4056.5,4055.5,11.45477039]
[1734380653558,0.1834993,4056.4,4055.5,11.45477039]
[1734380653774,0.55,4056.5,4055.5,11.45477039]
[1734380653976,0.12569438,4057.0,4054.9,8.7299964]
[1734380653977,0.103,4056.2,4054.9,8.7299964]
[1734380654169,3.0,4056.7,4054.4,4.74786546]
[1734380654170,0.55,4055.9,4054.5,9.74154213]
[1734380654361,0.286434,4055.8,4054.6,2.0713417]
[1734380654662,0.286434,4055.8,4054.5,10.20895987]
[1734380654663,0.103,4055.8,4054.8,2.72477399]
[1734380657641,0.103,4055.8,4054.8,11.45477039]
[1734380657843,0.12579738,4055.7,4054.9,0.35408301]
[1734380658140,0.12579738,4055.7,4054.8,11.45477039]
[1734380659100,0.12579738,4055.7,4054.8,8.7299964]
[1734380659101,0.55,4055.6,4054.8,8.7299964]
[1734380659247,0.103,4055.5,4054.8,8.7299964]
[1734380660536,0.103,4055.5,4054.4,2.72477399]
[1734380662557,0.103,4055.5,4054.3,8.7299964]
[1734380662881,0.103,4055.3,4054.0,8.7299964]
[1734380663080,0.103,4055.1,4054.0,8.7299964]
[1734380663377,0.103,4054.9,4053.2,8.7299964]
[1734380663577,0.103,4054.9,4053.3,8.7299964]
[1734380663780,0.103,4055.1,4053.3,8.7299964]
[1734380663955,0.103,4054.9,4053.3,8.7299964]
[1734380664145,3.0028467,4055.2,4053.3,8.7299964]
[1734380664146,0.51491938,4054.8,4053.3,8.7299964]
[1734380664481,0.103,4054.6,4053.3,8.7299964]
[1734380664879,0.103,4054.6,4053.4,2.72477399]
[1734380665757,0.103,4054.6,4053.3,9.8922488]
[1734380665960,0.103,4054.6,4053.1,0.1677536]
[1734380667910,0.103,4054.5,4053.1,0.1677536]
[1734380668198,0.103,4054.4,4053.1,0.1677536]
[1734380668398,0.103,4054.2,4053.1,0.1677536]
[1734380671369,0.103,4054.1,4053.1,0.1677536]
[1734380671882,0.103,4053.9,4053.1,0.1677536]
[1734380672633,0.103,4053.3,4053.1,0.1677536]
[1734380672768,2.46712,4053.3,4053.1,0.1677536]
[1734380672972,3.0893694,4053.2,4053.1,0.1677536]
[1734380673275,6.50034291,4053.2,4053.1,0.1677536]
[1734380673491,2.57025,4053.1,4051.1,0.8058]
[1734380673677,2.72477399,4053.0,4051.1,8.7299964]
[1734380673865,0.103,4052.4,4050.5,9.5013964]
[1734380674070,0.103,4052.2,4050.6,0.95013964]
[1734380674408,0.103,4052.0,4050.2,8.7299964]
[1734380674568,0.103,4052.0,4050.1,0.7714]
[1734380674767,0.103,4052.0,4049.8,2.72477399]
[1734380675680,0.103,4052.0,4049.9,3.0]
[1734380675884,0.103,4051.8,4050.0,0.6496174]
[1734380676498,0.103,4051.8,4049.7,0.7714]
[1734380676499,0.103,4051.7,4049.7,0.7714]
[1734380676700,0.103,4051.7,4049.6,3.0]
[1734380676877,0.103,4051.7,4049.8,3.0]
[1734380677379,0.103,4051.7,4049.7,2.72477399]
[1734380677380,0.28552271,4051.6,4049.7,2.72477399]
[1734380677580,0.103,4051.4,4049.7,2.72477399]
[1734380678213,0.103,4051.2,4049.4,8.7299964]
[1734380678610,0.103,4051.2,4049.5,3.0]
[1734380678783,0.18228626,4051.1,4049.5,3.0]
[1734380678998,0.103,4051.0,4049.5,11.7299964]
[1734380679592,0.103,4051.0,4049.3,2.72477399]
[1734380679787,0.103,4051.0,4049.3,3.0]
[1734380680313,0.29070603,4051.1,4049.3,3.0]
[1734380680314,0.103,4050.8,4049.3,2.72477399]
[1734380680618,0.22511322,4050.8,4049.3,2.72477399]
[1734380680804,0.22511322,4050.8,4049.4,1.1622524]
[1734380682125,0.103,4050.8,4050.1,2.72477399]
[1734380682418,0.103,4050.8,4049.4,1.43259845]
[1734380682419,0.103,4051.4,4050.5,3.51067399]
[1734380682583,0.103,4053.0,4050.9,2.72477399]
[1734380682985,0.103,4052.9,4051.3,2.72477399]
[1734380683213,0.103,4052.9,4050.8,0.02468048]
[1734380683214,0.103,4052.9,4051.7,3.51067399]
[1734380683401,0.103,4052.9,4052.6,2.72477399]
[1734380684525,0.12422949,4052.7,4052.6,2.72477399]
[1734380685254,0.103,4052.9,4052.6,2.72477399]
[1734380686010,0.103,4052.9,4052.0,8.7299964]
[1734380686210,0.103,4052.9,4052.4,3.36127888]
[1734380686522,0.103,4054.0,4052.4,3.36127888]
[1734380686729,0.103,4053.8,4052.4,3.36127888]
[1734380686915,0.4103097,4053.7,4052.4,3.36127888]
[1734380687121,0.4103097,4053.6,4052.4,3.36127888]
[1734380687347,0.1824148,4053.5,4052.4,3.36127888]
[1734380687518,0.18245716,4053.4,4052.4,4.57040641]
[1734380687850,0.103,4053.8,4052.4,4.57040641]
[1734380688035,0.103,4053.8,4052.8,3.36127888]
[1734380688036,0.4105068,4053.7,4052.8,3.36127888]
[1734380688359,0.103,4053.8,4052.8,3.36127888]
[1734380688360,0.41064123,4053.6,4052.8,3.36127888]
[1734380688555,0.103,4053.8,4052.8,3.36127888]
[1734380688698,0.41075888,4053.7,4052.8,3.36127888]
[1734380688902,0.41075888,4053.6,4052.8,3.36127888]
[1734380689103,0.103,4053.8,4052.8,3.36127888]
[1734380689104,0.41075888,4053.5,4052.8,3.36127888]
[1734380689352,0.103,4053.8,4052.8,3.36127888]
[1734380689353,0.18263909,4053.4,4052.8,3.36127888]
[1734380689520,0.103,4053.8,4052.2,8.7299964]
[1734380689521,0.103,4053.8,4052.4,3.36127888]
[1734380689715,0.70289149,4053.7,4052.2,8.7299964]
[1734380689938,0.103,4053.4,4051.5,3.36127888]
[1734380690110,0.103,4053.2,4051.5,3.36127888]
[1734380690437,3.0,4053.9,4051.5,3.36127888]
[1734380690438,0.103,4053.0,4051.5,3.36127888]
[1734380690651,1.06780444,4052.9,4051.5,3.36127888]
[1734380690849,0.103,4053.0,4051.5,3.36127888]
[1734380691034,0.22854797,4052.8,4051.6,1.20912753]
[1734380691254,0.77706309,4052.7,4051.6,1.20912753]
[1734380691456,0.41138634,4052.6,4051.6,1.20912753]
[1734380691632,0.41138634,4052.5,4051.6,1.20912753]
[1734380691819,0.41138634,4052.4,4051.6,1.20912753]
[1734380692020,0.18297003,4052.3,4051.7,0.62391895]
[1734380692272,0.65889314,4052.6,4051.7,0.62391895]
[1734380692433,0.103,4053.0,4051.5,3.36127888]
[1734380692434,0.70491755,4052.5,4051.5,3.36127888]
[1734380692635,0.41196716,4052.4,4051.5,3.36127888]
[1734380692953,0.41196716,4052.3,4051.5,3.36127888]
[1734380693136,0.18309522,4052.2,4051.5,3.36127888]
[1734380693341,0.65926355,4052.7,4051.5,4.65345641]
[1734380693544,1.0714639,4052.6,4051.5,4.65345641]
[1734380693876,1.0714639,4052.6,4051.4,8.7299964]
[1734380693877,0.103,4052.4,4051.4,8.7299964]
[1734380694039,1.0714639,4052.3,4051.4,8.7299964]
[1734380694380,0.7053784,4052.2,4051.4,8.7299964]
[1734380694676,0.18322241,4052.1,4051.4,12.09127528]
[1734380694881,0.41222253,4052.0,4051.4,12.09127528]
[1734380695182,0.18322241,4051.9,4051.4,12.09127528]
[1734380695335,0.65976839,4052.2,4051.4,12.09127528]
[1734380695692,0.41242848,4052.1,4051.4,12.09127528]
[1734380695978,0.80869362,4052.0,4051.4,3.36127888]
[1734380696179,0.41242848,4051.9,4051.4,3.36127888]
[1734380696342,0.41242848,4051.8,4051.4,3.36127888]
[1734380696541,0.103,4052.0,4051.4,3.36127888]
[1734380696731,0.41247553,4051.9,4051.4,3.36127888]
[1734380696929,0.41247553,4051.8,4051.4,3.36127888]
[1734380697157,0.103,4052.0,4051.0,3.36127888]
[1734380697358,0.41247549,4051.9,4051.0,3.36127888]
[1734380697568,0.103,4052.0,4051.0,3.36127888]
[1734380697569,0.41247549,4051.8,4051.0,3.36127888]
[1734380697771,0.41247549,4051.7,4051.0,3.36127888]
[1734380697978,0.41247549,4051.7,4051.0,4.65304641]
[1734380698183,0.103,4052.0,4051.0,4.65304641]
[1734380698328,0.4127134,4051.9,4051.0,4.65304641]
[1734380698526,0.4127134,4051.8,4051.0,4.65304641]
[1734380698726,0.103,4052.0,4051.0,4.65304641]
[1734380698727,0.4127134,4051.7,4051.0,3.36127888]
[1734380698929,0.103,4052.0,4051.0,3.36127888]
[1734380699129,0.41270035,4051.9,4051.0,3.36127888]
[1734380699342,0.103,4052.0,4051.0,3.36127888]
[1734380699343,0.41270035,4051.8,4051.0,3.36127888]
[1734380699551,0.103,4051.6,4050.5,3.36127888]
[1734380700477,0.41290842,4051.5,4050.5,3.36127888]
[1734380700684,0.7798907,4051.4,4050.5,3.36127888]
[1734380700866,0.41288778,4051.3,4050.5,3.36127888]
[1734380701289,0.1834944,4051.2,4050.5,3.36127888]
[1734380701447,0.103,4051.6,4050.0,12.09127528]
[1734380701826,0.103,4051.6,4050.0,3.36127888]
[1734380701827,0.103,4051.0,4050.0,3.36127888]
[1734380701948,0.41286864,4050.9,4050.0,3.36127888]
[1734380702143,0.41286864,4050.8,4049.9,12.09127528]
[1734380702394,0.103,4051.0,4049.9,12.09127528]
[1734380702606,0.41300171,4050.9,4049.9,12.09127528]
[1734380702804,0.103,4051.0,4050.0,1.20912753]
[1734380702946,0.41299472,4050.9,4050.0,1.20912753]
[1734380703313,0.103,4051.0,4050.0,1.20912753]
[1734380703451,0.18354077,4050.9,4050.0,1.20912753]
[1734380703650,0.103,4051.0,4050.0,1.20912753]
[1734380703850,0.41298873,4050.9,4050.0,1.20912753]
[1734380704081,0.103,4051.0,4050.0,1.20912753]
[1734380704409,0.18354587,4050.9,4050.0,1.20912753]
[1734380704604,0.103,4051.0,4050.0,1.20912753]
[1734380704767,0.18353025,4050.9,4050.0,1.20912753]
[1734380704946,0.103,4051.0,4050.0,1.20912753]
[1734380705148,0.18351098,4050.9,4050.0,1.20912753]
[1734380705345,0.103,4051.0,4050.0,1.20912753]
[1734380705558,0.18350631,4050.9,4050.0,1.20912753]
[1734380705767,0.103,4051.0,4050.0,1.20912753]